Cogmind - Beta 14 @@@ ROGUE MODE // 2024.10.20 @ 10:24:58 Player: Ender Result: Destroyed by G-47 Trooper with Particle Gun Performance ------------- Evolutions (2) 1000 Regions Visited (3) 600 Robots Destroyed (28) 140 Value Destroyed (860) 860 Prototype IDs (2) 40 Alien Tech Used (0) 0 Bonus (0) 0 TOTAL SCORE: 2640 Bonus ------- None Cogmind --------- Core Integrity 0/550 Matter 222/300 Energy 100/100 System Corruption 0% Temperature Cool (9) Movement Core (350) Ox6 Location -8/Materials Parts ------- > --- POWER (2) -------- (None) > --- PROPULSION (3) --- (None) > --- UTILITY (3) ------ Large Storage Unit > --- WEAPON (3) ------- (None) > --- INVENTORY (15) --- Improved Heat Sink Improved Heat Sink Structural Scanner Terrain Scanner Terrain Scan Processor Heavy Armor Plating Peak State ------------ > --- POWER ------------ Improved Ion Engine Deuterium Engine > --- PROPULSION ------- Wheel Wheel Compact Wheel > --- UTILITY ---------- Improved Heat Sink Large Storage Unit Hacking Suite > --- WEAPON ----------- Light Assault Rifle Heavy Assault Rifle Improved Assault Rifle > --- INVENTORY -------- Ion Engine Wheel Improved Heat Sink Structural Scanner Terrain Scanner Terrain Scan Processor Grenade Launcher [Rating: 22] Favorites ----------- Power Improved Ion Engine Engine Improved Ion Engine Propulsion Wheel Wheel Wheel Utility Light Armor Plating Device Improved Heat Sink Storage Small Storage Unit Hackware Hacking Suite Protection Light Armor Plating Weapon Light Assault Rifle Energy Gun Medium Laser Ballistic Gun Light Assault Rifle Launcher Grenade Launcher Build | -11 -10 -9 -8 ------- Run | Yrd Mat Mat Mat Slots Evolved 4 | . . 2 2 Power 1 | . . 1 . Propulsion 1 | . . . 1 Utility 1 | . . . 1 Weapon 1 | . . 1 . Parts Attached 41 | 6 10 14 11 Power 7 | 1 1 3 2 Engine 7 | 1 1 3 2 Core . | . . . . Reactor . | . . . . Propulsion 10 | 2 3 3 2 Treads . | . . . . Leg . | . . . . Wheel 10 | 2 3 3 2 Hover . | . . . . Flight . | . . . . Utility 12 | 1 2 4 5 Device 5 | . . 1 4 Storage 2 | 1 . 1 . Processor . | . . . . Hackware 1 | . . 1 . Protection 4 | . 2 1 1 Artifact . | . . . . Weapon 12 | 2 4 4 2 Energy Gun 5 | 2 2 1 . Energy Cannon . | . . . . Ballistic Gun 6 | . 2 3 1 Ballistic Cannon . | . . . . Launcher 1 | . . . 1 Special Weapon . | . . . . Impact Weapon . | . . . . Slashing Weapon . | . . . . Piercing Weapon . | . . . . Special Melee Weapon . | . . . . Unidentified Prototypes . | . . . . Parts Lost 21 | . . 6 15 Power 4 | . . 1 3 Propulsion 7 | . . 3 4 Utility 4 | . . 1 3 Weapon 6 | . . 1 5 Highest Loss Streak 12 | . . 5 12 To Critical Strikes 2 | . . . 2 Average Slot Usage (%) 91 | . 94 90 91 Engine 15 | . 13 15 16 Wheel 23 | . 26 20 24 Device 5 | . . 8 6 Storage 7 | . 14 2 9 Hackware 3 | . . 3 8 Protection 6 | . 11 6 2 Energy Gun 8 | . 18 7 . Ballistic Gun 19 | . 8 24 19 Launcher 1 | . . . 3 Peak Build Rating 22 | 6 7 18 22 Average Rating 12 | 4 6 13 18 On Entrance 7 | . 6 7 17 Naked Turns . | . . . . Heaviest Build 46 | 14 17 41 46 Greatest Support 36 | 20 20 26 36 Greatest Overweight (x) 10 | . 3 2 10 Average Overweight (x) . | . . . 1 Largest Inventory Capacity 15 | 8 8 15 15 Average Capacity 8 | 6 8 6 15 Most Carried 10 | 3 8 10 10 Average Carried 4 | 1 3 3 7 Final Capacity 15 | 8 8 15 15 Final Carried 10 | 2 4 10 7 Class Distribution -------------------- 33% | Mutant 29% | Scavenger-Tank 20% | Scavenger-Gunner 7% | Tank 4% | Gunner 4% | Scavenger-Skirmisher Dominant Class ---------------- Mutant | -10/Materials Scavenger-Tank | -9/Materials Scavenger-Gunner | -8/Materials Resources | -11 -10 -9 -8 ----------- Run | Yrd Mat Mat Mat Matter Collected 861 | 215 102 311 233 Remotely . | . . . . Salvage Created 908 | . 116 544 248 Parts 59 | . 4 39 16 Haulers Intercepted . | . . . . Recyclers Shooed . | . . . . Parts Field Recycled . | . . . . Retrieved Matter . | . . . . Parts Self-Destructed . | . . . . Prevented . | . . . . Kills | -11 -10 -9 -8 ------- Run | Yrd Mat Mat Mat Combat Hostiles Destroyed 22 | . 5 12 5 Guns 21 | . 5 12 4 AOE 1 | . . . 1 Classes Destroyed 6 | . 2 2 2 Builder 2 | . . . 2 Watcher 4 | . . 3 1 Swarmer 5 | . 3 2 . Grunt 13 | . 2 7 4 Sentry 3 | . . 3 . Hunter 1 | . . . 1 Best Kill Streak 4 | . 3 4 2 Combat Bots Only 4 | . 3 4 2 Max Kills in Single Turn 2 | . 1 1 2 Gunslinging . | . . . . Exploded 1 | . . . 1 Melee . | . . . . Uniques/NPCs Destroyed . | . . . . Combat | -11 -10 -9 -8 -------- Run | Yrd Mat Mat Mat Hostile Shots Fired 221 | . 44 49 128 Missed 70 | . 19 16 35 Damage Taken 2155 | . 233 433 1489 Core 650 | . 37 50 563 Absorbed by Shields . | . . . . Core Remaining (%) 90 | 100 85 87 . Volleys Fired 97 | . 17 40 40 Largest 3 | . 2 3 3 Hottest 120 | . 100 120 73 Shots Fired 254 | . 34 113 107 Gun 249 | . 34 113 102 Cannon . | . . . . Launcher 5 | . . . 5 Special . | . . . . Kinetic 194 | . 11 81 102 Thermal 55 | . 23 32 . Explosive 5 | . . . 5 Electromagnetic . | . . . . Robot Hit Streak 14 | . 8 7 14 Robot Miss Streak 5 | . 3 5 5 Penetration Max . | . . . . Secondary Targets 2 | . 2 . . Max Gunslinging Chain 1 | . 1 . . Shots Hit Robots 162 | . 23 65 74 Core Hits 57 | . 7 27 23 Critical Kills 1 | . . . 1 Critical Parts Destroyed . | . . . . Critical Strikes 7 | . 2 4 1 Burn 6 | . 2 4 . Destroy 1 | . . . 1 Melee Attacks . | . . . . Impact . | . . . . Slashing . | . . . . Piercing . | . . . . Sneak Attacks . | . . . . Combat Hostiles . | . . . . Follow-up Attacks . | . . . . Damage Inflicted 2068 | . 247 767 1054 Guns 1806 | . 247 767 792 Cannons . | . . . . Explosions 262 | . . . 262 Melee . | . . . . Ramming . | . . . . Kinetic 1359 | . 59 508 792 Thermal 447 | . 188 259 . Explosive 262 | . . . 262 Electromagnetic . | . . . . Impact . | . . . . Slashing . | . . . . Piercing . | . . . . Highest Corruption . | . . . . Average Corruption . | . . . . Corruption Purged . | . . . . Corruption Blocked . | . . . . Overload Shots . | . . . . Overflow Damage . | . . . . Projectiles . | . . . . Explosions . | . . . . Melee . | . . . . Knockbacks . | . . . . Impact . | . . . . Kinetic . | . . . . Secondary . | . . . . Self-Inflicted Damage 32 | . . . 32 Shots 1 | . . . 1 Rammed . | . . . . Targets Rammed . | . . . . Kicked . | . . . . Crushed . | . . . . Highest Temperature 313 | . 313 99 171 Average Temperature 66 | . 146 21 45 Received Heat Transfer 801 | . 72 162 567 Siege Activations . | . . . . Robots Corrupted . | . . . . Combat Hostiles . | . . . . Parts Fried . | . . . . Impact Corruptions . | . . . . Robots Melted . | . . . . Combat Hostiles . | . . . . Parts Melted 3 | . 2 1 . Heat Transferred 1776 | . 703 1073 . Parts Sabotaged . | . . . . Parts Stolen . | . . . . Parts Stripped . | . . . . Power Chain Reactions . | . . . . Alert | -11 -10 -9 -8 ------- Run | Yrd Mat Mat Mat Peak Influence 277 | . 187 277 256 Initial 78 | . . 78 56 Average 121 | . 73 154 128 Maximum Alert Level 1 | . . 1 1 Low Security (%) 80 | 100 100 72 73 Level 1 19 | . . 27 26 Level 2 . | . . . . Level 3 . | . . . . Level 4 . | . . . . Level 5 . | . . . . High Security . | . . . . Max Security . | . . . . Squads Dispatched 9 | . 1 3 5 Investigation 5 | . 1 1 3 Extermination . | . . . . Reinforcement 2 | . . 2 . Assault . | . . . . Garrison 2 | . . . 2 Intercept . | . . . . Searches Triggered . | . . . . Construction Impeded . | . . . . Haulers Reinforced . | . . . . Active Scanning Responses . | . . . . Cargo Convoy Interrupts . | . . . . Stealth | -11 -10 -9 -8 --------- Run | Yrd Mat Mat Mat Distress Signals 4 | . 1 1 2 Communications Jammed . | . . . . Distress Signals . | . . . . Times Spotted 44 | . 8 21 15 Peak Tracking Total 8 | . 3 8 5 Tactical Retreats 7 | . 2 3 2 Traps | -11 -10 -9 -8 ------- Run | Yrd Mat Mat Mat Traps Triggered 6 | . 4 . 2 Indirectly . | . . . . Trap Hack Attempts . | . . . . Triggered . | . . . . Disarmed . | . . . . Reprogrammed . | . . . . Reused . | . . . . Traps Extracted . | . . . . Installed . | . . . . Triggered . | . . . . Machines | -11 -10 -9 -8 ---------- Run | Yrd Mat Mat Mat Machines Disabled 3 | . . . 3 Max in Single Turn 1 | . . . 1 Machines Repaired . | . . . . Machines Dismantled . | . . . . Machines Sabotaged . | . . . . Overloaded Fab Kills . | . . . . Hacking | -11 -10 -9 -8 --------- Run | Yrd Mat Mat Mat Machines Accessed 11 | . 3 5 3 Terminals 9 | . 3 3 3 Fabricators . | . . . . Repair Stations . | . . . . Recycling Units . | . . . . Scanalyzers 2 | . . 2 . Garrison Access . | . . . . Total Hacks 37 | . 8 19 10 Successful 27 | . 6 13 8 Failed 9 | . 2 5 2 Catastrophic 1 | . . . 1 Database Lockouts 1 | . . 1 . Manual 1 | . . . 1 Terminals 33 | . 8 15 10 Fabricators . | . . . . Repair Stations . | . . . . Recycling Units . | . . . . Scanalyzers 4 | . . 4 . Garrison Access . | . . . . Terminal Hacks 23 | . 6 9 8 Record 8 | . . 6 2 Alert Level 5 | . 1 2 2 Unreport Threat 2 | . . 1 1 Locate Traps 1 | . 1 . . Maintenance Status 2 | . 1 . 1 Security Status 1 | . . . 1 Patrol Status 1 | . 1 . . Transport Status 1 | . 1 . . Hauler Manifests 1 | . 1 . . Zone Layout 1 | . . . 1 Fabricator Hacks . | . . . . Repair Station Hacks . | . . . . Recycling Unit Hacks . | . . . . Scanalyzer 4 | . . 4 . Insert Component 2 | . . 2 . Analyze 2 | . . 2 . Garrison Access Hacks . | . . . . Unauthorized Hacks . | . . . . Terminals . | . . . . Fabricators . | . . . . Repair Stations . | . . . . Recycling Units . | . . . . Scanalyzers . | . . . . Garrison Access . | . . . . Data Cores Recovered . | . . . . Used . | . . . . Hacking Detections 7 | . 2 4 1 Full Trace Events 4 | . 1 2 1 Feedback Events . | . . . . Feedback Blocked . | . . . . Robot Schematics Acquired . | . . . . Robots Built . | . . . . Authchips . | . . . . Time . | . . . . Total Robot Build Rating . | . . . . Part Schematics Acquired 2 | . . 2 . Parts Built . | . . . . Authchips . | . . . . Time . | . . . . Total Part Build Rating . | . . . . Parts Repaired . | . . . . Time . | . . . . Parts Recycled . | . . . . Recycled Matter . | . . . . Retrieved Matter . | . . . . Retrieved Components . | . . . . Parts Scanalyzed 2 | . . 2 . Part Schematics Acquired 2 | . . 2 . Parts Damaged 1 | . . 1 . Bothacking | -11 -10 -9 -8 ------------ Run | Yrd Mat Mat Mat Used RIF Installer . | . . . . Robots Hacked . | . . . . Non-combat . | . . . . Combat . | . . . . Robot Hacks Applied . | . . . . Relay Couplers Released . | . . . . Fabnet Peak Effective % . | . . . . Robots Rewired . | . . . . Allies Hacked . | . . . . Hacks Repelled . | . . . . Allies | -11 -10 -9 -8 -------- Run | Yrd Mat Mat Mat Total Allies . | . . . . Largest Group . | . . . . Highest-Rated Group . | . . . . Highest-Rated Ally . | . . . . Total Orders . | . . . . Ally Attacks . | . . . . Total Damage . | . . . . Kills . | . . . . Allies Corrupted . | . . . . Allies Melted . | . . . . Intel | -11 -10 -9 -8 ------- Run | Yrd Mat Mat Mat Robot Analysis Total . | . . . . Derelict Logs Recovered . | . . . . Drone Launches . | . . . . Drone Recoveries . | . . . . Exploration | -11 -10 -9 -8 ------------- Run | Yrd Mat Mat Mat Turns Passed 1468 | 62 353 665 388 Spaces Moved 1196 | 61 350 560 225 Core 27 | 3 6 10 8 Treads . | . . . . Legs . | . . . . Wheels 1169 | 58 344 550 217 Hover . | . . . . Flight . | . . . . Fastest Speed 50 | 50 80 80 95 Average Speed 90 | 78 81 90 110 Slowest Speed 550 | 80 200 150 550 Overloaded Moves . | . . . . Propulsion Burnouts . | . . . . Robots Hopped . | . . . . Cave-ins Triggered . | . . . . Exploration Rate (%) 33 | 4 51 56 22 Regions Visited 3 Branch Regions . Pre-discovered Areas . | . . . . Known Exits Taken . | . . . . Unknown Exits Taken 3 | 1 1 1 . Scrap Searched . | . . . . Spaces Dug . | . . . . Terrain Destroyed 13 | . . . 13 Melee . | . . . . Projectile . | . . . . AOE 13 | . . . 13 Terrain Rammed . | . . . . Walls Destroyed . | . . . . Machines Disabled . | . . . . Actions | -11 -10 -9 -8 --------- Run | Yrd Mat Mat Mat Total 1388 | 74 385 641 288 Wait 6 | . . . 6 Move 1193 | 60 349 559 225 Hop . | . . . . Pick Up 42 | 8 9 21 4 Fast Attach . | . . . . Attach 30 | 6 7 8 9 Detach 1 | . . . 1 Swap 11 | . 3 6 2 Drop 8 | . . 7 1 Fire 97 | . 17 40 40 Melee . | . . . . Ram . | . . . . Kick . | . . . . Crush . | . . . . Escape Stasis . | . . . . Rewire . | . . . . Trap . | . . . . Miscellaneous . | . . . . Route ------- -11/Scrapyard -10/Materials (discovered 2 exits: *Mat x2) -9/Materials (discovered 3 exits: *Mat x3) -8/Materials History --------- Turn | Location | Event 21 | -11/Scrapyard | Discovered new exit (range 16) 63 | -11/Scrapyard | Entered Materials 141 | -10/Materials | Discovered new exit (range 8) 307 | -10/Materials | Build established: Mutant 378 | -10/Materials | Discovered new exit (range 16) 416 | -10/Materials | Entered another Materials area 416 | -9/Materials | Evolved 2 slots: Power x1, Weapon x1 519 | -9/Materials | Lost 5 parts (1p2n1u1w) 649 | -9/Materials | Central database locked down 751 | -9/Materials | Discovered new exit (range 8) 951 | -9/Materials | Discovered new exit (range 10) 1065 | -9/Materials | Discovered new exit (range 15) 1081 | -9/Materials | Entered another Materials area 1081 | -8/Materials | Evolved 2 slots: Propulsion x1, Utility x1 1279 | -8/Materials | Garrison activated, responded to threat 1453 | -8/Materials | Core integrity fell below 50% 1463 | -8/Materials | Core integrity fell below 20% 1469 | -8/Materials | Destroyed by G-47 Trooper with Particle Gun Last Messages --------------- 01443_ Penetrated by Slug. 01443_ Imp. Ion Engine destroyed. 01446_ Penetrated by Slug. 01446_ G-47 Trooper destroyed. 01446_ Critical hit (Destroy). 01446_ Ion Engine destroyed. 01449_ Penetrated by Slug. 01450_ R-06 Scavenger collects Terrain Scanner. 01453_ Hacking Suite destroyed. 01454_ M-13 Machinist repairs G-47 Trooper. 01454_ R-06 Scavenger collects Wheel. 01455_ Penetrated by Slug. 01456_ Critical hit (Burn: +37). 01458_ Slug penetrates Wall. 01459_ R-06 Scavenger collects Welding Torch. 01461_ Penetrated by Slug. 01464_ R-06 Scavenger collects Wheel. 01464_ Penetrated by Slug. 01466_ Critical hit (Burn: +37). 01467_ Slug penetrates Wall. Map ----- +----------------------------------------------------+ | | | ?????????????????????????????????????????????????? | | ?????????????????????????????????????????????????? | | ?????????????????????????????????????????????????? | | ?????????????????????????????#??????????????###### | | ????????????????????????????????????????????# | | ????????????????????????????????????????????# | | ????????????????????????????????????????????# | | ????????????????????????????????????#???????# | | ????????????????????????????????????????????# | | ????????????????????????????????????#???##### | | ?????????????????????????????????######## # | | ?????????????????????????????????# ! # # | | ?????????????????????????????????#[* # # | | ?????????????????????????????????#[] + #####+ | | ?????????????????????????????????#*] # #??# | | ?????????????????????????????????# # #### | | ?????????????????????????????????# # | | ?????????????????????????????????######## | | ????????????????????????????????????????# T | | ????????????????????????????????????????# | | ???????????????????????????????????????## | | ??????????????????####################### " | | ??????????????????? !%= """"" | | ????????????????????????#= """"" | | ????????????????????????#@ """"" | | ????????????????????????# ############# """ | | ????????????????????????# ###########?# | | ????????????????????????# # #?# | | ????????????????????????# # T #?# | | ????????????????????????#h # """ #?# | | ????????????????????????#YY # """ #?# | | ????????????????????????# g# """ #?#######+## | | ????????????????????????+ + #???# | | ????????????????????????# %#% #???# | | ????????????????????????# % #= #??????????? | | ????????????????????????# r ## #######??????????? | | ????????????????????????# #! #?????????????? | | ????????????????????????# u# #?????????????? | | ????????????????????????# # #?????????????? | | ????????????????????????# + #?????????????? | | ????????????????????????# # "Y" #?????????????? | | ????????????????????????# # """ #?????????????? | | ????????????????????????# ########?????????????? | | ????????????????????????# #????????????????????? | | ????????????????????????# ?????????????????????? | | ????????????????????????# ?????????????????????? | | ????????????????????????# ?????????????????????? | | ????????????????????????? ?????????????????????? | | ?????????????????????????????????????????????????? | +----------------------------------------------------+ Best States ------------- Heat Dissipation 45 Energy Generation 21 Energy Capacity 440 Matter Stores 300 Matter Capacity 300 Sight Range 16 Robot Scan Range 15 Terrain Scan Range 14 Terrain Scan Density 10 Armor Coverage 150 Evasion (%) 44 Offensive Hacking 10 Item Schematics ----------------- Imp. Assault Rifle | -9/Materials | Scanalyzed Imp. Medium Laser | -9/Materials | Scanalyzed Robot Schematics ------------------ None Fabricated ------------ Nothing Alien Tech Used ----------------- None Achievements -------------- Everything Is Under Control Novice Programmer Safety First Shopping List Challenges ------------ None Game ------ Seed GuidedNuclearLink Manual? 0 Play Time 00:30:33 Cumulative 1.6 hours Start 2024.10.20 @ 09:54:18 End 2024.10.20 @ 10:24:58 Sessions 1 Manual Loads 0 Difficulty Rogue Special Mode None Game No. 4 Rogue 4 Adventurer 0 Explorer 0 Win Type - Total 0 Types 0/0/0/0/0/0/0/0/0 Lore% 1 Gallery% 3 Achievement% 5 Wizard Run 0 Options --------- Layout 1 ASCII 0 Keyboard 0 Movement Mouse Keybinds 0 Fullscreen 1 Font 24/Smallcaps Map View 50x35 Zoom Use 0% Tactical HUD 1 Map Filters NONE Filters NONE Steam 1 RUN: cb287355-687c-461e-838f-50c8d8da8100